[Event "MČR juniorů a juniorek v rapid šachu 2024"]
[Site "Hotel Fit Fun, Harrachov, Czech Republic"]
[Date "2024.09.22"]
[Round "9.27"]
[White "Vratil Tomas"]
[Black "Plzak David"]
[Result "1/2-1/2"]
[TimeControl "20+5"]
[WhiteFideId "23756870"]
[BlackFideId "23776234"]
[WhiteElo "1671"]
[BlackElo "1625"]

1. e4 {[%clk 00:20:06]} {[%emt 00:00:03]} c5 {[%clk 00:20:10]} 2. c3 {[%clk
00:20:09]} {[%emt 00:00:04]} Nf6 {[%clk 00:20:12]} {[%emt 00:00:02]} 3. e5
{[%clk 00:20:12]} {[%emt 00:00:02]} Nd5 {[%clk 00:20:16]} {[%emt 00:00:01]} 4.
d4 {[%clk 00:20:16]} cxd4 {[%clk 00:20:19]} {[%emt 00:00:01]} 5. cxd4 {[%clk
00:20:20]} {[%emt 00:00:02]} d6 {[%clk 00:20:22]} {[%emt 00:00:02]} 6. Nf3
{[%clk 00:20:07]} {[%emt 00:00:18]} Nc6 {[%clk 00:20:17]} {[%emt 00:00:10]} 7.
Bc4 {[%clk 00:20:10]} {[%emt 00:00:02]} Nb6 {[%clk 00:20:18]} {[%emt 00:00:04]}
8. Bb3 {[%clk 00:20:14]} {[%emt 00:00:01]} dxe5 {[%clk 00:18:13]} {[%emt
00:02:10]} 9. Nxe5 {[%clk 00:20:02]} {[%emt 00:00:17]} Nxe5 {[%clk 00:18:07]}
{[%emt 00:00:10]} 10. dxe5 {[%clk 00:20:05]} {[%emt 00:00:04]} Qxd1+ {[%clk
00:18:02]} {[%emt 00:00:09]} 11. Bxd1 {[%clk 00:20:08]} {[%emt 00:00:02]} g6
{[%clk 00:17:38]} {[%emt 00:00:29]} 12. f4 {[%clk 00:20:11]} {[%emt 00:00:02]}
Bg7 {[%clk 00:16:46]} {[%emt 00:00:57]} 13. Bf3 {[%clk 00:20:04]} {[%emt
00:00:11]} O-O {[%clk 00:15:49]} {[%emt 00:01:03]} 14. O-O {[%clk 00:20:06]}
{[%emt 00:00:03]} Rb8 {[%clk 00:15:33]} {[%emt 00:00:21]} 15. Be3 {[%clk
00:20:01]} {[%emt 00:00:10]} Bd7 {[%clk 00:15:01]} {[%emt 00:00:37]} 16. Nc3
{[%clk 00:20:00]} {[%emt 00:00:05]} Bc6 {[%clk 00:14:54]} {[%emt 00:00:13]} 17.
Rad1 {[%clk 00:19:53]} {[%emt 00:00:12]} Rbd8 {[%clk 00:14:27]} {[%emt
00:00:32]} 18. Bc5 {[%clk 00:18:51]} {[%emt 00:01:07]} Rxd1 {[%clk 00:13:44]}
{[%emt 00:00:48]} 19. Bxd1 {[%clk 00:17:12]} {[%emt 00:01:43]} Re8 {[%clk
00:13:17]} {[%emt 00:00:32]} 20. Bb3 {[%clk 00:17:12]} {[%emt 00:00:05]} e6
{[%clk 00:12:54]} {[%emt 00:00:28]} 21. Rd1 {[%clk 00:16:53]} {[%emt 00:00:24]}
f6 {[%clk 00:11:34]} {[%emt 00:01:25]} 22. Bd6 {[%clk 00:13:39]} {[%emt
00:03:20]} fxe5 {[%clk 00:11:02]} {[%emt 00:00:37]} 23. fxe5 {[%clk 00:13:42]}
{[%emt 00:00:02]} Nd7 {[%clk 00:10:10]} {[%emt 00:00:57]} 24. Re1 {[%clk
00:13:07]} {[%emt 00:00:40]} Bf8 {[%clk 00:09:02]} {[%emt 00:01:13]} 25. Ne4
{[%clk 00:09:58]} {[%emt 00:03:13]} Bxe4 {[%clk 00:07:55]} {[%emt 00:01:13]} 26.
Rxe4 {[%clk 00:10:01]} {[%emt 00:00:02]} Bxd6 {[%clk 00:07:48]} {[%emt
00:00:12]} 27. exd6 {[%clk 00:10:05]} {[%emt 00:00:01]} Nc5 {[%clk 00:07:13]}
{[%emt 00:00:40]} 28. Rb4 {[%clk 00:09:11]} {[%emt 00:01:00]} Nxb3 {[%clk
00:06:04]} {[%emt 00:01:13]} 29. Rxb3 {[%clk 00:09:14]} {[%emt 00:00:02]} b6
{[%clk 00:05:47]} {[%emt 00:00:22]} 30. Kf2 {[%clk 00:09:17]} {[%emt 00:00:02]}
Rd8 {[%clk 00:05:40]} {[%emt 00:00:12]} 31. Rd3 {[%clk 00:09:20]} {[%emt
00:00:02]} Kf7 {[%clk 00:05:20]} {[%emt 00:00:25]} 32. Ke3 {[%clk 00:09:23]}
{[%emt 00:00:02]} e5 {[%clk 00:04:15]} {[%emt 00:01:10]} 33. Ke4 {[%clk
00:09:27]} {[%emt 00:00:01]} Ke6 {[%clk 00:04:19]} 34. d7 {[%clk 00:08:59]}
{[%emt 00:00:33]} Rxd7 {[%emt 00:00:03]} 35. Rxd7 {[%emt 00:00:01]} Kxd7 {[%clk
00:04:19]} {[%emt 00:00:01]} 36. Kxe5 {[%clk 00:09:02]} {[%emt 00:00:02]} Ke7
{[%clk 00:04:23]} 37. h4 {[%clk 00:09:05]} {[%emt 00:00:03]} h6 {[%clk
00:03:29]} {[%emt 00:00:59]} 38. b4 {[%clk 00:07:42]} {[%emt 00:01:28]} a6
{[%clk 00:02:47]} {[%emt 00:00:48]} 39. Ke4 {[%emt 00:00:11]} 1/2-1/2



[ePGN "0.1;DGT LiveChess/2.2.6"]

[Event "MČR juniorů a juniorek v rapid šachu 2024"]
[Site "Hotel Fit Fun, Harrachov, Czech Republic"]
[Date "2024.09.22"]
[Round "9.28"]
[White "Pejrimovsky Tadeas Rubel"]
[Black "Macova Marketa"]
[Result "1-0"]
[TimeControl "20+5"]
[WhiteFideId "23709537"]
[BlackFideId "23715588"]
[WhiteElo "1895"]
[BlackElo "1587"]

1. e4 {[%clk 00:20:08]} {[%emt 00:00:01]} c5 {[%clk 00:20:09]} {[%emt
00:00:01]} 2. b4 {[%clk 00:20:11]} {[%emt 00:00:02]} e5 {[%clk 00:19:58]}
{[%emt 00:00:16]} 3. Nf3 {[%clk 00:20:09]} {[%emt 00:00:07]} Qc7 {[%clk
00:19:10]} {[%emt 00:00:53]} 4. Bb2 {[%clk 00:19:23]} {[%emt 00:00:51]} d6
{[%clk 00:18:31]} {[%emt 00:00:43]} 5. bxc5 {[%clk 00:19:04]} {[%emt 00:00:25]}
Qxc5 {[%clk 00:18:30]} {[%emt 00:00:06]} 6. Nc3 {[%clk 00:19:07]} {[%emt
00:00:02]} Nf6 {[%clk 00:18:20]} {[%emt 00:00:15]} 7. Bb5+ {[%clk 00:17:48]}
{[%emt 00:01:24]} Bd7 {[%clk 00:18:12]} {[%emt 00:00:12]} 8. Bxd7+ {[%clk
00:17:50]} {[%emt 00:00:04]} Nbxd7 {[%clk 00:18:15]} {[%emt 00:00:02]} 9. O-O
{[%clk 00:17:53]} {[%emt 00:00:02]} Be7 {[%clk 00:18:07]} {[%emt 00:00:13]} 10.
Re1 {[%clk 00:16:34]} {[%emt 00:01:24]} O-O {[%clk 00:18:08]} {[%emt 00:00:04]}
11. Nh4 {[%clk 00:15:52]} {[%emt 00:00:47]} Bd8 {[%clk 00:15:25]} {[%emt
00:02:48]} 12. Qe2 {[%clk 00:13:57]} {[%emt 00:02:00]} Qc6 {[%clk 00:13:23]}
{[%emt 00:02:07]} 13. Nf5 {[%clk 00:13:10]} {[%emt 00:00:52]} Rc8 {[%clk
00:12:12]} {[%emt 00:01:16]} 14. Ba3 {[%clk 00:12:54]} {[%emt 00:00:21]} Bc7
{[%clk 00:11:48]} {[%emt 00:00:29]} 15. Ne7+ {[%clk 00:12:21]} {[%emt
00:00:38]} 1-0



[ePGN "0.1;DGT LiveChess/2.2.6"]

[Event "MČR juniorů a juniorek v rapid šachu 2024"]
[Site "Hotel Fit Fun, Harrachov, Czech Republic"]
[Date "2024.09.22"]
[Round "9.29"]
[White "Slivova Linda"]
[Black "Boff Vojtech"]
[Result "1-0"]
[TimeControl "20+5"]
[WhiteFideId "23709294"]
[BlackFideId "23733969"]
[WhiteElo "1630"]
[BlackElo "1719"]

1. d4 {[%clk 00:20:08]} {[%emt 00:00:02]} Nf6 {[%clk 00:20:08]} 2. Nf3 {[%clk
00:20:12]} {[%emt 00:00:01]} e6 {[%clk 00:20:06]} {[%emt 00:00:07]} 3. Bf4
{[%clk 00:20:16]} {[%emt 00:00:02]} b6 {[%clk 00:20:06]} {[%emt 00:00:05]} 4.
e3 {[%clk 00:20:15]} {[%emt 00:00:06]} Bb7 {[%clk 00:20:06]} {[%emt 00:00:04]}
5. Nbd2 {[%clk 00:20:18]} d5 {[%clk 00:19:51]} {[%emt 00:00:22]} 6. Bd3 {[%clk
00:20:12]} Be7 {[%clk 00:19:43]} {[%emt 00:00:23]} 7. Ne5 {[%clk 00:19:15]} c5
{[%clk 00:19:19]} {[%emt 00:01:32]} 8. c3 {[%clk 00:19:19]} {[%emt 00:00:02]}
O-O {[%clk 00:18:37]} {[%emt 00:00:47]} 9. Qf3 {[%clk 00:18:36]} {[%emt
00:00:48]} Nc6 {[%clk 00:17:58]} {[%emt 00:00:43]} 10. Qh3 {[%clk 00:17:54]}
{[%emt 00:00:47]} g6 {[%clk 00:17:23]} {[%emt 00:00:40]} 11. Bh6 {[%clk
00:17:26]} {[%emt 00:00:33]} Re8 {[%clk 00:16:52]} {[%emt 00:00:35]} 12. f4
{[%clk 00:17:05]} {[%emt 00:00:28]} cxd4 {[%clk 00:16:11]} {[%emt 00:00:44]} 13.
exd4 {[%clk 00:16:59]} {[%emt 00:00:13]} Nd7 {[%clk 00:14:15]} {[%emt
00:02:00]} 14. Qg4 {[%clk 00:13:39]} {[%emt 00:03:25]} Nf6 {[%clk 00:13:48]}
{[%emt 00:00:32]} 15. Qf3 {[%clk 00:13:18]} {[%emt 00:00:27]} Qd6 {[%clk
00:11:58]} {[%emt 00:01:53]} 16. h4 {[%clk 00:12:04]} {[%emt 00:01:21]} Bf8
{[%clk 00:11:50]} {[%emt 00:00:12]} 17. Bg5 {[%clk 00:11:51]} {[%emt 00:00:18]}
Bg7 {[%clk 00:11:45]} {[%emt 00:00:11]} 18. h5 {[%clk 00:11:04]} {[%emt
00:00:52]} Nxh5 {[%clk 00:11:02]} {[%emt 00:00:48]} 19. Rxh5 {[%clk 00:10:53]}
{[%emt 00:00:16]} gxh5 {[%clk 00:11:04]} {[%emt 00:00:03]} 20. Qxh5 {[%clk
00:07:27]} {[%emt 00:03:31]} Nxe5 {[%clk 00:10:27]} {[%emt 00:00:42]} 21. Bxh7+
{[%clk 00:06:19]} {[%emt 00:01:13]} Kf8 {[%clk 00:10:22]} {[%emt 00:00:10]} 22.
fxe5 {[%clk 00:06:06]} {[%emt 00:00:17]} Bxe5 {[%clk 00:09:09]} {[%emt
00:01:18]} 23. O-O-O {[%clk 00:05:26]} {[%emt 00:00:45]} Bg7 {[%clk 00:08:45]}
{[%emt 00:00:29]} 24. Rf1 {[%clk 00:05:19]} {[%emt 00:00:12]} Qd7 {[%clk
00:08:24]} {[%emt 00:00:26]} 25. Bg6 {[%clk 00:04:59]} {[%emt 00:00:25]} f5
{[%clk 00:08:06]} {[%emt 00:00:23]} 26. Bxe8 {[%clk 00:03:30]} {[%emt
00:01:34]} Qxe8 {[%clk 00:08:08]} {[%emt 00:00:03]} 27. Qe2 {[%clk 00:02:56]}
{[%emt 00:00:38]} Qg6 {[%clk 00:07:17]} {[%emt 00:00:57]} 28. Bf4 {[%clk
00:02:51]} {[%emt 00:00:10]} Re8 {[%clk 00:06:35]} {[%emt 00:00:46]} 29. Nf3
{[%clk 00:02:03]} {[%emt 00:00:54]} Re7 {[%clk 00:05:37]} {[%emt 00:01:03]} 30.
Bd6 {[%clk 00:02:00]} {[%emt 00:00:08]} Bh6+ {[%clk 00:05:32]} {[%emt
00:00:09]} 31. Kb1 {[%clk 00:01:42]} {[%emt 00:00:23]} f4+ {[%clk 00:05:34]}
{[%emt 00:00:03]} 32. Qc2 {[%clk 00:01:30]} {[%emt 00:00:17]} Qg7 {[%clk
00:04:45]} {[%emt 00:00:54]} 33. Ne5 {[%clk 00:01:18]} {[%emt 00:00:18]} Ke8
{[%clk 00:04:19]} {[%emt 00:00:31]} 34. Bxe7 {[%clk 00:01:09]} {[%emt
00:00:14]} Kxe7 {[%clk 00:04:21]} 35. Qg6 {[%clk 00:01:04]} {[%emt 00:00:11]}
Ba6 {[%clk 00:04:00]} {[%emt 00:00:26]} 36. Qxg7+ {[%clk 00:01:05]} {[%emt
00:00:05]} Bxg7 {[%clk 00:04:04]} {[%emt 00:00:01]} 37. Rxf4 {[%clk 00:01:07]}
{[%emt 00:00:03]} Bxe5 {[%clk 00:04:07]} {[%emt 00:00:01]} 38. dxe5 {[%clk
00:01:11]} {[%emt 00:00:02]} Bd3+ {[%clk 00:04:09]} {[%emt 00:00:03]} 39. Kc1
{[%clk 00:01:14]} {[%emt 00:00:02]} Be4 {[%clk 00:04:13]} {[%emt 00:00:01]} 40.
g4 {[%clk 00:01:12]} {[%emt 00:00:06]} Ke8 {[%clk 00:04:11]} {[%emt 00:00:07]}
41. Rf6 {[%clk 00:01:13]} {[%emt 00:00:05]} Ke7 {[%clk 00:04:14]} {[%emt
00:00:02]} 42. g5 {[%clk 00:01:17]} {[%emt 00:00:02]} Bf5 {[%clk 00:04:17]}
{[%emt 00:00:01]} 43. g6 {[%clk 00:01:14]} {[%emt 00:00:08]} a6 {[%clk
00:04:13]} {[%emt 00:00:09]} 44. g7 {[%clk 00:01:09]} {[%emt 00:00:10]} Bh7
{[%clk 00:04:17]} {[%emt 00:00:01]} 45. Rf8 {[%emt 00:00:07]} 1-0



[ePGN "0.1;DGT LiveChess/2.2.6"]

[Event "MČR juniorů a juniorek v rapid šachu 2024"]
[Site "Hotel Fit Fun, Harrachov, Czech Republic"]
[Date "2024.09.22"]
[Round "9.3"]
[White "Mikolas Petr"]
[Black "Jun Rudolf"]
[Result "0-1"]
[TimeControl "20+5"]
[WhiteFideId "23713224"]
[BlackFideId "376612"]
[WhiteElo "1892"]
[BlackElo "2142"]

1. e4 {[%clk 00:20:08]} {[%emt 00:00:01]} c5 {[%clk 00:20:09]} {[%emt
00:00:01]} 2. Nf3 {[%clk 00:20:11]} {[%emt 00:00:02]} Nc6 {[%clk 00:20:13]}
{[%emt 00:00:01]} 3. d4 {[%clk 00:20:14]} {[%emt 00:00:01]} cxd4 {[%clk
00:20:17]} {[%emt 00:00:02]} 4. Nxd4 {[%clk 00:20:18]} {[%emt 00:00:01]} Nf6
{[%clk 00:20:21]} 5. Nc3 {[%clk 00:20:22]} {[%emt 00:00:01]} e5 {[%clk
00:20:25]} 6. Ndb5 {[%clk 00:20:26]} {[%emt 00:00:01]} d6 {[%clk 00:20:29]} 7.
Bg5 {[%clk 00:20:18]} {[%emt 00:00:13]} a6 {[%clk 00:20:33]} 8. Na3 {[%clk
00:20:19]} {[%emt 00:00:03]} b5 {[%clk 00:20:37]} {[%emt 00:00:02]} 9. Nd5
{[%clk 00:20:22]} {[%emt 00:00:02]} Be7 {[%clk 00:20:40]} {[%emt 00:00:01]} 10.
Bxf6 {[%clk 00:20:25]} {[%emt 00:00:02]} Bxf6 {[%clk 00:20:43]} {[%emt
00:00:03]} 11. c3 {[%clk 00:20:26]} {[%emt 00:00:03]} O-O {[%clk 00:20:46]}
{[%emt 00:00:02]} 12. Nc2 {[%clk 00:20:29]} {[%emt 00:00:02]} Rb8 {[%clk
00:20:50]} {[%emt 00:00:01]} 13. a4 {[%clk 00:18:55]} {[%emt 00:01:39]} bxa4
{[%clk 00:20:53]} {[%emt 00:00:02]} 14. Rxa4 {[%clk 00:15:59]} {[%emt
00:03:01]} a5 {[%clk 00:19:57]} {[%emt 00:01:01]} 15. b4 {[%clk 00:11:24]}
{[%emt 00:04:41]} axb4 {[%clk 00:20:00]} 16. cxb4 {[%clk 00:11:28]} {[%emt
00:00:01]} Bg5 {[%clk 00:18:42]} {[%emt 00:01:23]} 17. Bc4 {[%clk 00:09:20]}
{[%emt 00:02:13]} Ne7 {[%clk 00:17:42]} {[%emt 00:01:04]} 18. O-O {[%clk
00:07:51]} {[%emt 00:01:34]} Be6 {[%clk 00:17:26]} {[%emt 00:00:22]} 19. Ra3
{[%clk 00:06:06]} {[%emt 00:01:50]} Rc8 {[%clk 00:16:15]} {[%emt 00:01:15]} 20.
Nxe7+ {[%clk 00:03:47]} {[%emt 00:02:24]} Bxe7 {[%clk 00:16:18]} {[%emt
00:00:03]} 21. Bxe6 {[%clk 00:03:46]} {[%emt 00:00:06]} fxe6 {[%clk 00:16:21]}
{[%emt 00:00:01]} 22. Ne3 {[%clk 00:03:11]} {[%emt 00:00:41]} Rb8 {[%clk
00:15:46]} {[%emt 00:00:41]} 23. Rb3 {[%clk 00:03:07]} {[%emt 00:00:09]} Rf4
{[%clk 00:15:33]} {[%emt 00:00:18]} 24. Qd3 {[%clk 00:02:34]} {[%emt 00:00:38]}
d5 {[%clk 00:15:21]} {[%emt 00:00:16]} 25. exd5 {[%clk 00:02:37]} {[%emt
00:00:02]} Rd4 {[%clk 00:15:26]} 26. Qa6 {[%clk 00:02:20]} {[%emt 00:00:22]}
Qb6 {[%clk 00:12:32]} {[%emt 00:02:59]} 27. Qxb6 {[%clk 00:02:16]} {[%emt
00:00:09]} Rxb6 {[%clk 00:12:37]} 28. dxe6 {[%clk 00:02:19]} {[%emt 00:00:01]}
g6 {[%clk 00:12:41]} {[%emt 00:00:01]} 29. b5 {[%clk 00:02:00]} {[%emt
00:00:24]} Kg7 {[%clk 00:12:43]} {[%emt 00:00:03]} 30. g3 {[%clk 00:01:53]}
{[%emt 00:00:12]} Kf6 {[%clk 00:12:35]} {[%emt 00:00:11]} 31. Rc1 {[%clk
00:01:23]} {[%emt 00:00:36]} Kxe6 {[%clk 00:12:15]} {[%emt 00:00:25]} 32. Nc4
{[%clk 00:01:00]} {[%emt 00:00:28]} Rb8 {[%clk 00:12:19]} 33. b6 {[%clk
00:00:51]} {[%emt 00:00:14]} Bd8 {[%clk 00:10:25]} {[%emt 00:01:59]} 34. b7
{[%clk 00:00:51]} {[%emt 00:00:06]} Rd7 {[%clk 00:09:51]} {[%emt 00:00:38]} 35.
Rcb1 {[%clk 00:00:29]} {[%emt 00:00:28]} Rc7 {[%clk 00:09:33]} {[%emt
00:00:23]} 36. Ne3 {[%clk 00:00:17]} {[%emt 00:00:17]} Rc6 {[%clk 00:09:28]}
{[%emt 00:00:09]} 37. Rb5 {[%clk 00:00:17]} {[%emt 00:00:05]} h5 {[%clk
00:09:13]} {[%emt 00:00:20]} 38. Ra1 {[%clk 00:00:21]} {[%emt 00:00:01]} Bc7
{[%clk 00:07:45]} {[%emt 00:01:32]} 39. Ra8 {[%clk 00:00:11]} {[%emt 00:00:15]}
Kd7 {[%clk 00:07:28]} {[%emt 00:00:23]} 40. Nd5 {[%clk 00:00:10]} {[%emt
00:00:06]} Bd6 {[%clk 00:07:27]} {[%emt 00:00:06]} 41. Nb4 {[%clk 00:00:11]}
{[%emt 00:00:04]} Rc1+ {[%clk 00:07:14]} {[%emt 00:00:18]} 42. Kg2 {[%clk
00:00:15]} Rb1 {[%clk 00:07:18]} 43. Na6 {[%clk 00:00:07]} {[%emt 00:00:12]}
Rxb5 {[%clk 00:07:00]} {[%emt 00:00:23]} 44. Nxb8+ {[%clk 00:00:11]} {[%emt
00:00:01]} Kc7 {[%clk 00:06:38]} {[%emt 00:00:27]} 45. Nd7 {[%clk 00:00:07]}
{[%emt 00:00:09]} Kxd7 {[%clk 00:06:39]} {[%emt 00:00:03]} 46. Rg8 {[%clk
00:00:11]} {[%emt 00:00:02]} Rxb7 {[%clk 00:06:30]} {[%emt 00:00:14]} 47. Rg7+
{[%clk 00:00:14]} {[%emt 00:00:02]} Be7 {[%clk 00:06:29]} {[%emt 00:00:07]} 48.
Rxg6 {[%clk 00:00:17]} {[%emt 00:00:01]} Rb2 {[%clk 00:06:33]} {[%emt
00:00:01]} 49. Rh6 {[%clk 00:00:18]} {[%emt 00:00:04]} h4 {[%clk 00:06:32]}
{[%emt 00:00:06]} 50. gxh4 {[%clk 00:00:18]} {[%emt 00:00:05]} Bc5 {[%clk
00:06:36]} {[%emt 00:00:01]} 51. Rf6 {[%clk 00:00:22]} Ke7 {[%clk 00:06:32]}
{[%emt 00:00:08]} 52. Rf3 {[%clk 00:00:22]} {[%emt 00:00:05]} Ke6 {[%clk
00:06:34]} {[%emt 00:00:03]} 53. Kg3 {[%emt 00:00:13]} e4 {[%clk 00:06:36]} 54.
Rc3 {[%clk 00:00:15]} {[%emt 00:00:05]} Bxf2+ {[%clk 00:06:05]} {[%emt
00:00:36]} 55. Kf4 {[%clk 00:00:19]} e3 {[%clk 00:06:10]} {[%emt 00:00:02]} 56.
Kf3 {[%clk 00:00:21]} {[%emt 00:00:03]} Rb4 {[%clk 00:05:16]} {[%emt 00:00:58]}
57. h5 {[%clk 00:00:22]} {[%emt 00:00:05]} Rh4 {[%clk 00:05:06]} {[%emt
00:00:14]} 58. Rc6+ {[%clk 00:00:24]} {[%emt 00:00:04]} Kd5 {[%clk 00:05:06]}
{[%emt 00:00:04]} 59. Rh6 {[%clk 00:00:27]} {[%emt 00:00:03]} Rxh2 {[%clk
00:04:58]} {[%emt 00:00:13]} 60. Rh7 {[%clk 00:00:31]} {[%emt 00:00:01]} Ke6
{[%clk 00:05:00]} {[%emt 00:00:02]} 61. h6 {[%clk 00:00:24]} {[%emt 00:00:12]}
Kf6 {[%clk 00:04:21]} {[%emt 00:00:44]} 62. Ke2 {[%clk 00:00:07]} {[%emt
00:00:22]} Bg1+ {[%clk 00:04:17]} {[%emt 00:00:09]} 63. Ke1 {[%clk 00:00:09]}
{[%emt 00:00:03]} Bf2+ {[%clk 00:03:40]} {[%emt 00:00:42]} 64. Ke2 {[%clk
00:00:14]} Kg6 {[%clk 00:03:44]} {[%emt 00:00:02]} 65. Rh8 {[%clk 00:00:07]}
{[%emt 00:00:12]} Rxh6 {[%clk 00:03:40]} {[%emt 00:00:09]} 66. Rg8+ {[%clk
00:00:11]} {[%emt 00:00:01]} Kf7 {[%clk 00:03:41]} {[%emt 00:00:04]} 67. Rg2
{[%clk 00:00:09]} {[%emt 00:00:07]} Ke6 {[%clk 00:03:44]} {[%emt 00:00:02]} 68.
Kd3 {[%clk 00:00:09]} {[%emt 00:00:05]} Kf5 {[%clk 00:03:32]} {[%emt 00:00:16]}
69. Rg8 {[%clk 00:00:08]} {[%emt 00:00:06]} Ra6 {[%clk 00:03:24]} {[%emt
00:00:13]} 70. Rf8+ {[%clk 00:00:09]} {[%emt 00:00:04]} Kg4 {[%clk 00:03:28]}
71. Rg8+ {[%clk 00:00:13]} {[%emt 00:00:01]} Kf3 {[%clk 00:03:31]} {[%emt
00:00:01]} 72. Rf8 {[%clk 00:00:14]} {[%emt 00:00:05]} Kg2 {[%clk 00:03:35]}
{[%emt 00:00:01]} 73. Ke4 {[%emt 00:00:10]} 0-1



[ePGN "0.1;DGT LiveChess/2.2.6"]